bitfinex/quotes_ETHUSD_20241009
["timestamp","ask_amount","ask_price","bid_price","bid_amount"]
[1728453981696,1.72710923,2453.2,2451.9,0.7972]
[1728453981896,4.07814,2452.1,2451.6,0.8081]
[1728453982205,4.0784,2452.0,2451.6,0.8081]
[1728453983096,4.07814,2452.1,2451.6,0.8081]
[1728453983301,4.07831,2452.0,2451.7,0.488723]
[1728453983912,4.07847,2451.9,2451.7,0.488723]
[1728453984343,4.07847,2451.9,2451.6,0.8081]
[1728453986314,4.07814,2452.1,2451.6,0.8081]
[1728453987126,8.15584,2452.3,2451.6,4.88704]
[1728453987325,4.07798,2452.2,2451.8,0.7645]
[1728453987527,4.07798,2452.2,2451.9,0.45069525]
[1728453988118,8.1558,2452.3,2451.9,0.45069525]
[1728453988726,4.0779,2452.3,2451.9,0.45069525]
[1728453989616,4.07756,2452.5,2451.9,0.45069525]
[1728453989617,4.07756,2452.5,2452.0,0.8254]
[1728453989919,4.07725,2452.7,2452.1,8.35602806]
[1728453990406,4.07733,2452.6,2452.1,4.27790806]
[1728453990606,4.07733,2452.6,2452.1,0.53545552]
[1728453990907,8.15473,2452.6,2452.2,0.95172055]
[1728453991485,4.07733,2452.6,2452.2,0.95172055]
[1728453991683,8.15472,2452.6,2452.2,0.95172055]
[1728453992018,4.07733,2452.6,2452.2,0.95172055]
[1728453992574,4.07733,2452.6,2452.3,0.8208]
[1728453992824,0.11819475,2452.5,2452.3,1.45940061]
[1728453993030,4.07714,2452.7,2452.3,1.45940061]
[1728453993230,0.11827022,2452.6,2452.3,1.45940061]
[1728453994251,4.19559022,2452.6,2452.3,1.45940061]
[1728453995818,0.11827022,2452.6,2452.3,1.45940061]
[1728453996135,4.07706,2452.8,2452.4,0.64890712]
[1728453996336,0.11820762,2452.5,2452.4,0.64890712]
[1728453996499,4.07706,2452.8,2452.4,0.64890712]
[1728453997218,11.50675,2453.0,2452.4,4.72653712]
[1728453997219,0.11835855,2452.7,2452.4,4.72653712]
[1728453997601,0.11828882,2452.6,2452.4,4.72653712]
[1728453997799,4.07691,2452.9,2452.5,0.99283903]
[1728453998344,0.11843974,2452.8,2452.5,0.99283903]
[1728453999601,4.07697,2452.8,2452.5,0.99283903]
[1728453999807,0.11837575,2452.7,2452.5,0.99283903]
[1728454000230,0.11830312,2452.6,2452.5,0.99283903]
[1728454000408,4.07697,2452.8,2452.5,0.99283903]
[1728454000744,0.11837859,2452.7,2452.5,0.99283903]
[1728454000904,0.11837859,2452.7,2452.6,0.57193761]
[1728454001106,4.07697,2452.8,2452.6,0.57193761]
[1728454001306,0.1183911,2452.7,2452.6,0.57193761]
[1728454001721,4.07697,2452.8,2452.6,0.57193761]
[1728454002047,0.11837862,2452.7,2452.6,1.32333761]
[1728454002203,4.07673,2453.0,2452.6,1.32333761]
[1728454002544,0.11852953,2452.9,2452.6,1.32333761]
[1728454002747,0.11852953,2452.9,2452.7,0.54006976]
[1728454004848,0.11850847,2452.8,2452.7,0.54006976]
[1728454005005,4.07667,2453.0,2452.7,0.54006976]
[1728454005346,0.11858392,2452.9,2452.7,0.54006976]
[1728454005511,4.19540392,2452.9,2452.6,1.32333761]
[1728454005847,0.11858392,2452.9,2452.6,1.32333761]
[1728454014018,4.19541392,2452.9,2452.4,4.85602]
[1728454014749,4.19541392,2452.9,2452.4,8.93356]
[1728454015731,4.19541392,2452.9,2452.5,4.07744]
[1728454016338,0.11858392,2452.9,2452.5,4.07744]
[1728454016767,4.07664,2453.0,2452.5,4.07744]
[1728454016930,0.11774822,2452.8,2452.5,4.07744]
[1728454017134,4.07664,2453.0,2452.5,4.07744]
[1728454017135,0.11782367,2452.9,2452.5,4.970786]
[1728454017334,0.11767277,2452.7,2452.5,4.970786]
[1728454017565,4.07664,2453.0,2452.5,4.970786]
[1728454017730,0.1175973,2452.6,2452.5,4.970786]
[1728454017926,4.07664,2453.0,2452.5,4.970786]
[1728454018169,0.1175973,2452.6,2452.5,4.970786]
[1728454018363,4.07664,2453.0,2452.5,4.970786]
[1728454018533,0.1175973,2452.6,2452.5,4.970786]
[1728454018733,4.07664,2453.0,2452.5,4.970786]
[1728454018935,0.1175973,2452.6,2452.5,4.07744]
[1728454019135,4.07664,2453.0,2452.5,4.07744]
[1728454019772,0.11782511,2452.9,2452.5,4.07744]
[1728454019966,0.11782511,2452.9,2452.4,4.85602]
[1728454020174,0.11782511,2452.9,2452.6,4.07728]
[1728454020470,0.11774966,2452.8,2452.6,4.07728]
[1728454020781,4.07652,2453.1,2452.6,4.07728]
[1728454020944,0.1176742,2452.7,2452.6,4.07728]
[1728454021137,4.07652,2453.1,2452.6,4.07728]
[1728454021657,0.11789912,2453.0,2452.6,4.07728]
[1728454022071,4.19458912,2453.0,2452.5,4.07746]
[1728454023394,0.11789912,2453.0,2452.5,4.970808]
[1728454023686,4.19453912,2453.0,2452.5,4.970808]
[1728454026688,4.07681,2452.9,2452.4,4.85602]
[1728454026895,0.11774682,2452.8,2452.4,4.07752]
[1728454027047,0.11774682,2452.8,2452.4,8.15506]
[1728454027248,0.11774682,2452.8,2452.4,4.07752]
[1728454027784,0.11774682,2452.8,2452.5,4.07746]
[1728454029487,0.11774682,2452.8,2452.4,4.07752]
[1728454029984,0.11774682,2452.8,2452.4,8.15506]
[1728454030184,0.11774682,2452.8,2452.4,9.22030634]
[1728454030386,0.11774682,2452.8,2452.4,5.14276634]
[1728454030963,0.11774682,2452.8,2452.4,4.07752]
[1728454032758,0.11774682,2452.8,2452.6,4.07716]
[1728454033255,0.1176327,2452.7,2452.6,5.8031634]
[1728454033459,4.07657,2453.1,2452.6,5.8031634]
[1728454033782,0.11785906,2453.0,2452.7,0.65750634]
[1728454034088,4.07683,2452.9,2452.4,4.07751]
[1728454034288,0.11770816,2452.8,2452.4,4.07751]
[1728454034488,0.11770816,2452.8,2452.4,9.21825434]
[1728454035107,0.11770816,2452.8,2452.5,4.07742]
[1728454035406,4.07664,2453.0,2452.4,5.14070434]
[1728454035570,0.11765991,2452.7,2452.4,5.14070434]
[1728454035756,4.07698,2452.8,2452.4,5.14070434]
[1728454035957,0.11759588,2452.6,2452.1,0.8176]
[1728454036197,4.07748,2452.5,2452.1,0.8176]
[1728454036561,0.11743921,2452.4,2452.1,0.8176]
[1728454036753,0.11743921,2452.4,2452.1,1.47978234]
[1728454036956,0.11743921,2452.4,2451.9,0.7983]
[1728454037205,4.07824,2452.1,2451.6,4.87726]
[1728454037369,4.07827,2452.1,2451.6,4.87726]
[1728454037568,0.11710147,2452.0,2451.6,4.87726]
[1728454038397,0.11710147,2452.0,2451.6,8.95622]
[1728454038602,4.07809,2452.2,2451.6,8.95622]
[1728454038603,8.15617,2452.2,2451.7,0.895622]
[1728454038906,0.11702597,2451.9,2451.7,0.895622]
[1728454039062,4.07808,2452.2,2451.7,4.974412]
[1728454039704,0.11709971,2452.1,2451.7,4.974412]
[1728454039905,0.11709971,2452.1,2451.8,1.15776754]
[1728454044261,0.11709971,2452.1,2451.6,6.6032634]
[1728454044667,4.19524971,2452.1,2451.6,6.6032634]
[1728454045782,4.07855,2451.9,2451.4,4.0792]
[1728454045971,4.19547134,2452.0,2451.4,0.8082]
[1728454046170,4.19553032,2451.8,2451.4,0.8082]
[1728454046378,4.07866,2451.8,2451.3,4.07941]
[1728454046594,0.11670893,2451.7,2451.4,1.06931434]
[1728454046965,4.07866,2451.8,2451.4,1.06931434]
[1728454047204,0.11662624,2451.6,2451.4,1.06931434]
[1728454047712,0.11655071,2451.5,2451.4,5.14860434]
[1728454048012,4.0785,2451.9,2451.4,4.07929]
[1728454048197,0.11651921,2451.5,2451.4,4.07929]
[1728454048392,4.0785,2451.9,2451.4,5.14859234]
[1728454048579,0.11651921,2451.5,2451.4,5.14859234]
[1728454048985,4.0785,2451.9,2451.4,5.14859234]
[1728454049190,0.11651921,2451.5,2451.4,5.14859234]
[1728454049393,4.0785,2451.9,2451.4,5.14859234]
[1728454049589,0.11651777,2451.5,2451.4,5.14859234]
[1728454049790,4.0785,2451.9,2451.4,5.14859234]
[1728454049997,0.11651777,2451.5,2451.4,5.14859234]
[1728454050180,4.0785,2451.9,2451.4,5.14859234]
[1728454050381,0.11651777,2451.5,2451.4,4.07929]
[1728454050587,4.0785,2451.9,2451.2,4.88773]
[1728454050588,4.07881,2451.7,2451.2,4.88773]
[1728454050785,0.11358347,2451.5,2451.2,4.88773]
[1728454050985,4.07881,2451.7,2451.2,4.88773]
[1728454051328,0.11347071,2451.4,2451.2,5.95708834]
[1728454051623,0.11339517,2451.3,2451.2,5.95708834]
[1728454052013,4.07881,2451.7,2451.2,5.95708834]
[1728454052213,0.1133866,2451.3,2451.2,5.95708834]
[1728454052416,4.07881,2451.7,2451.2,5.95708834]
[1728454052597,0.1133866,2451.3,2451.2,5.95705834]
[1728454052802,4.07869,2451.8,2451.3,4.07946]
[1728454059553,4.07869,2451.8,2451.3,5.25573317]
[1728454060052,4.07869,2451.8,2451.3,5.25432013]
[1728454060240,4.07869,2451.8,2451.3,4.07804696]
[1728454067518,0.11366867,2451.7,2451.3,4.07804696]
[1728454067973,4.07869,2451.8,2451.3,4.07804696]
[1728454068184,0.11282838,2451.6,2451.3,4.07804696]
[1728454068481,4.07869,2451.8,2451.3,4.07804696]
[1728454068646,0.11275285,2451.5,2451.3,4.07804696]
[1728454068839,4.07869,2451.8,2451.3,5.14724]
[1728454069036,0.11267731,2451.4,2451.3,4.07804696]
[1728454069253,4.07869,2451.8,2451.3,4.07804696]
[1728454069439,0.11267731,2451.4,2451.3,4.07804696]
[1728454069660,4.07869,2451.8,2451.3,4.07804696]
[1728454069861,0.11267588,2451.4,2451.3,4.07804696]
[1728454070079,4.07869,2451.8,2451.3,5.14724]
[1728454070280,0.11267588,2451.4,2451.3,4.07804696]
[1728454070483,4.07869,2451.8,2451.3,4.07804696]
[1728454070678,0.11267588,2451.4,2451.3,4.07804696]
[1728454070899,4.07869,2451.8,2451.3,5.14724]
[1728454071043,0.11267444,2451.4,2451.3,4.07804696]
[1728454071238,4.07857,2451.9,2451.3,4.07804696]
[1728454071486,4.07826,2452.1,2451.5,4.89004]
[1728454071720,4.078,2452.2,2451.8,0.811]
[1728454072383,4.07816,2452.1,2451.8,0.811]
[1728454074873,4.07797,2452.2,2451.8,0.811]
[1728454076482,4.07792,2452.3,2451.8,0.811]
[1728454076483,4.07815,2452.1,2451.8,0.811]
[1728454076846,4.07792,2452.3,2451.8,0.811]
[1728454077042,4.07792,2452.3,2451.9,0.7513]
[1728454077485,4.07734,2452.6,2452.1,0.7513]
[1728454077672,4.07734,2452.6,2452.1,4.82941]
[1728454080324,4.07755,2452.5,2452.1,0.7513]
[1728454080626,9.1560034,2452.8,2452.1,0.7513]
[1728454080827,13.2329734,2452.8,2452.1,0.7513]
[1728454081127,5.8029734,2452.8,2452.1,0.7513]
[1728454082722,0.10995949,2452.7,2452.1,0.7513]
[1728454084026,4.18710949,2452.7,2452.1,0.7513]
[1728454085805,8.26433949,2452.7,2452.1,0.7513]
[1728454086131,4.18710949,2452.7,2452.1,0.7513]
[1728454086335,8.26434949,2452.7,2452.1,0.7513]
[1728454087160,4.18710949,2452.7,2452.1,0.7513]
[1728454087343,0.10995949,2452.7,2452.1,4.8294]
[1728454087657,0.10995949,2452.7,2452.2,0.7825]
[1728454088446,4.18713949,2452.7,2452.2,0.7825]
[1728454089730,0.10995949,2452.7,2452.2,0.7825]
[1728454090048,0.10995949,2452.7,2452.3,0.8031]
[1728454090219,4.07697,2452.8,2452.3,0.8031]
[1728454090420,0.10989979,2452.6,2452.3,0.8031]
[1728454090743,4.07697,2452.8,2452.3,0.8031]
[1728454090937,0.10982432,2452.5,2452.3,0.8031]
[1728454091133,4.0768,2452.9,2452.5,0.7992]
[1728454091445,8.15345,2453.0,2452.5,0.7992]
[1728454091640,4.0767,2453.0,2452.5,0.7992]
[1728454092056,8.15343,2453.0,2452.5,0.7992]
[1728454092545,4.0767,2453.0,2452.5,0.7992]
[1728454092973,7.43,2453.4,2452.6,2.5172034]
[1728454093259,4.07648,2453.1,2452.7,0.7912]
[1728454093463,8.1531,2453.1,2452.7,0.7912]
[1728454093624,8.1531,2453.1,2452.7,1.45066534]
[1728454093822,4.07648,2453.1,2452.7,1.45066534]
[1728454094583,8.15306,2453.1,2452.7,1.45066534]
[1728454094744,4.07648,2453.1,2452.7,1.45066534]
[1728454094946,4.07665,2453.0,2452.7,1.45066534]
[1728454095248,4.07648,2453.1,2452.7,1.45066534]
[1728454095664,8.1531,2453.1,2452.7,1.45066534]
[1728454097274,8.1531,2453.1,2452.6,5.8032934]
[1728454097275,4.07648,2453.1,2452.9,0.7501]
[1728454097641,0.1103261,2453.0,2452.9,0.7501]
[1728454098969,8.15248,2453.3,2452.9,0.7501]
[1728454099173,0.11032536,2453.0,2452.9,0.7501]
[1728454099479,0.1103261,2453.0,2452.9,1.30536259]
[1728454099773,4.07622,2453.3,2452.9,1.30536259]
[1728454100083,4.07631,2453.2,2452.9,1.30536259]
[1728454100375,4.18678697,2453.2,2452.9,0.7501]
[1728454105955,0.11047697,2453.2,2452.9,0.7501]
[1728454106158,4.0765,2453.1,2452.9,0.7501]
[1728454106497,0.10657778,2453.0,2452.9,0.7501]
[1728454106661,0.10657778,2453.0,2452.5,0.808]
[1728454106861,0.10657778,2453.0,2452.6,8.81565234]
[1728454107178,0.10657778,2453.0,2452.7,0.8309]
[1728454126636,0.10657778,2453.0,2452.7,4.90802]
[1728454126982,0.10657778,2453.0,2452.8,4.07691]
[1728454127337,4.07626,2453.3,2452.8,4.07691]
[1728454127647,8.1525,2453.3,2452.8,4.07691]
[1728454127856,0.10617932,2453.2,2452.8,5.21411857]
[1728454128062,8.15251,2453.3,2452.8,5.21411857]
[1728454128267,0.10610676,2453.1,2452.8,1.13720857]
[1728454128581,8.1525,2453.3,2452.8,1.13720857]
[1728454128767,0.10603132,2453.0,2452.9,1.01222686]
[1728454128973,8.1525,2453.3,2452.9,1.01222686]
[1728454129177,0.10603132,2453.0,2452.9,1.01222686]
[1728454129685,8.1525,2453.3,2452.9,1.01222686]
[1728454129887,0.10605565,2453.0,2452.9,1.01222686]
[1728454130097,8.1525,2453.3,2452.9,1.01222686]
[1728454130382,0.10605565,2453.0,2452.9,1.01222686]
[1728454130597,4.07624,2453.3,2452.9,1.01222686]
[1728454131086,0.10620939,2453.2,2452.9,1.01222686]
[1728454131286,4.07624,2453.3,2452.9,1.01222686]
[1728454131579,0.10613396,2453.1,2452.9,1.01222686]
[1728454131783,8.15247,2453.3,2453.0,0.68151803]
[1728454131970,8.15247,2453.3,2452.8,5.8029534]
[1728454132985,4.07623,2453.3,2452.8,5.8029534]
[1728454133176,4.07623,2453.3,2452.8,5.8028934]
[1728454133485,4.07623,2453.3,2452.8,9.8797634]
[1728454133658,4.07623,2453.3,2452.8,5.8028734]
[1728454133852,4.07623,2453.3,2452.9,0.66337734]
[1728454134852,4.07623,2453.3,2453.0,0.8119]
[1728454135681,8.15246,2453.3,2453.0,0.8119]
[1728454135987,4.07623,2453.3,2453.0,0.8119]
[1728454136804,4.0761,2453.4,2453.0,0.8119]
[1728454136947,4.0761,2453.4,2453.0,1.94739307]
[1728454137153,4.07615,2453.3,2453.0,1.94739307]
[1728454141392,4.07598,2453.4,2453.0,1.94739307]
[1728454141693,4.07598,2453.4,2453.0,0.8119]
[1728454142355,4.07592,2453.5,2453.0,0.8119]
[1728454142356,4.07615,2453.3,2453.0,0.8119]
[1728454142795,0.10260373,2453.2,2453.0,0.8119]
[1728454143098,4.07615,2453.3,2453.0,0.8119]
[1728454143273,0.1025283,2453.1,2453.0,0.8119]
[1728454143473,4.07615,2453.3,2453.0,0.8119]
[1728454143688,0.1025283,2453.1,2453.0,0.8119]
[1728454143996,4.07615,2453.3,2453.0,0.8119]
[1728454144197,0.1025283,2453.1,2453.0,0.8119]
[1728454144371,4.07615,2453.3,2453.0,0.8119]
[1728454144572,0.1025283,2453.1,2453.0,0.8119]
[1728454145098,4.07615,2453.3,2453.0,0.8119]
[1728454145251,0.1025283,2453.1,2453.0,0.8119]
[1728454145450,4.07615,2453.3,2453.0,0.8119]
[1728454145692,0.1025283,2453.1,2453.0,0.8119]
[1728454145894,4.07615,2453.3,2453.0,0.8119]
[1728454146190,0.1025283,2453.1,2453.0,0.8119]
[1728454146491,0.10253117,2453.1,2453.0,0.8119]
[1728454146701,4.07615,2453.3,2453.0,0.8119]
[1728454146879,0.10253117,2453.1,2453.0,0.8119]
[1728454147107,4.07615,2453.3,2453.0,0.8119]
[1728454147283,0.10253117,2453.1,2453.0,0.8119]
[1728454147478,4.07615,2453.3,2453.0,0.8119]
[1728454147707,0.10253117,2453.1,2453.0,0.8119]
[1728454149120,4.07615,2453.3,2453.0,0.8119]
[1728454149282,0.1026066,2453.2,2453.0,0.8119]
[1728454149504,8.15187,2453.5,2453.0,4.88852]
[1728454149706,0.10253117,2453.1,2453.0,4.88852]
[1728454149945,4.07592,2453.5,2453.0,5.95766034]
[1728454150142,0.10253117,2453.1,2453.0,4.88852]
[1728454150305,4.07599,2453.4,2453.0,0.8119]
[1728454150812,0.10268203,2453.3,2453.0,0.8119]
[1728454151143,4.17882203,2453.3,2453.0,0.8119]
[1728454152506,0.10268203,2453.3,2453.0,0.8119]
[1728454152708,3.0,2453.6,2453.0,0.8119]
[1728454152907,0.10260803,2453.2,2453.0,0.8119]
[1728454153119,3.0,2453.6,2453.0,1.47336034]
[1728454153446,4.07583,2453.5,2453.0,0.8119]
[1728454153645,4.07602,2453.4,2453.0,0.8119]
[1728454153821,4.17877744,2453.4,2453.0,0.8119]
[1728454154223,0.10275744,2453.4,2453.0,0.8119]
[1728454154416,0.10275744,2453.4,2453.0,4.88845]
[1728454154641,0.10275744,2453.4,2453.1,4.07647]
[1728454156831,15.58116,2453.7,2453.1,4.07647]
[1728454157162,0.10291257,2453.6,2453.1,4.07647]
[1728454157366,4.17861257,2453.6,2453.1,4.07647]
[1728454158851,4.17861257,2453.6,2453.0,4.88853]
[1728454158852,4.07586,2453.5,2453.0,4.88853]
[1728454159045,4.1787086,2453.5,2453.0,4.88853]
[1728454162880,0.1028486,2453.5,2453.0,4.88853]
[1728454163058,0.1028486,2453.5,2453.1,4.07646]
[1728454165573,0.1028486,2453.5,2453.1,4.972959]
[1728454170607,4.07606,2453.4,2453.0,0.8119]
[1728454170779,4.07606,2453.4,2452.8,8.9286]
[1728454171114,0.10270347,2453.3,2452.8,8.9286]
[1728454171618,0.10270347,2453.3,2452.9,4.07677]
[1728454171819,0.10270347,2453.3,2452.9,5.14222034]
[1728454174023,0.10270347,2453.3,2453.2,4.0763]
[1728454174518,0.10268632,2453.3,2453.2,4.0763]
[1728454174700,4.07533,2453.8,2453.2,4.0763]
[1728454174878,0.10268632,2453.3,2453.2,4.0763]
[1728454175075,4.07556,2453.7,2453.2,5.14712534]
[1728454175277,0.10268632,2453.3,2453.2,5.14712534]
[1728454175477,4.07556,2453.7,2453.2,5.14712534]
[1728454175703,0.10269347,2453.3,2453.2,5.14712534]
[1728454176012,4.07556,2453.7,2453.2,5.14712534]
[1728454176209,0.10270064,2453.3,2453.2,5.14712534]
[1728454176416,4.07556,2453.7,2453.2,5.14712534]
[1728454176573,0.10270064,2453.3,2453.2,5.14712534]
[1728454176769,4.07556,2453.7,2453.2,5.14712534]
[1728454177001,0.10272077,2453.3,2453.2,5.14712534]
[1728454177209,4.07556,2453.7,2453.2,5.14712534]
[1728454177389,0.10272077,2453.3,2453.2,5.14712534]
[1728454177601,4.07556,2453.7,2453.2,5.14712534]
[1728454177801,0.10273794,2453.3,2453.2,5.14712534]
[1728454177971,4.07533,2453.8,2453.4,0.8297]
[1728454178514,4.07533,2453.8,2453.4,1.83498453]
[1728454178817,4.07533,2453.8,2453.4,5.91093453]
[1728454179021,4.07475,2454.2,2453.4,5.91084453]
[1728454179222,4.07484,2454.1,2453.6,4.07556]
[1728454179377,4.07484,2454.1,2453.7,0.8276]
[1728454180489,4.07509,2454.0,2453.7,0.8276]
[1728454181922,0.20254244,2454.5,2453.6,1.17124079]
[1728454181923,6.65424906,2455.1,2454.5,4.07405]
[1728454182083,4.1955045,2455.1,2454.9,1.7260034]
[1728454182283,4.1955045,2455.1,2454.7,2.5139034]
[1728454182284,0.1222045,2455.1,2454.7,2.5139034]
[1728454183236,0.1222045,2455.1,2454.4,4.07422]
[1728454183237,1.26945218,2455.0,2454.4,0.8214]
[1728454183434,1.26945218,2455.0,2454.2,4.07455]
[1728454183435,4.07365,2454.8,2454.2,4.89595]
[1728454183729,4.07408,2454.6,2454.0,0.8214]
[1728454183931,4.07426,2454.5,2454.0,1.311062]
[1728454184455,4.07342,2455.0,2454.5,0.7505]
[1728454184686,4.07342,2455.0,2454.7,1.7260034]
[1728454184821,3.1222045,2455.1,2454.8,0.7505]
[1728454185458,0.1222045,2455.1,2454.8,0.7505]
[1728454185660,4.07341,2455.0,2454.4,0.7505]
[1728454185961,0.1222045,2455.1,2454.4,0.7505]
[1728454185962,4.07381,2454.7,2454.4,0.7505]
[1728454186567,3.1222045,2455.1,2454.6,1.7260034]
[1728454186718,3.1222045,2455.1,2454.7,0.7539]
[1728454186922,4.07341,2455.0,2454.7,0.7539]
[1728454187160,8.14688,2455.0,2454.7,0.7539]
[1728454187364,4.07341,2455.0,2454.7,0.7539]
[1728454187533,0.08367463,2454.9,2454.7,0.7539]
[1728454188068,0.08367463,2454.9,2454.7,1.02665537]
[1728454192378,4.15716463,2454.9,2454.7,1.02665537]
[1728454197667,4.07365,2454.8,2454.7,1.02665537]
[1728454197892,4.15730048,2454.8,2454.7,1.02665537]
[1728454198382,0.08365048,2454.8,2454.1,0.7537]
[1728454198585,0.08365048,2454.8,2453.9,3.0]
[1728454198586,4.07464,2454.2,2453.9,0.7537]
[1728454198760,4.07497,2454.0,2453.5,4.07579]
[1728454198962,4.07497,2454.0,2453.6,1.568864]
[1728454199179,0.0829711,2453.9,2453.6,1.568864]
[1728454199659,4.07514,2453.9,2453.6,1.568864]
[1728454199860,0.08289571,2453.8,2453.6,1.568864]
[1728454200471,8.15005,2454.0,2453.6,1.568864]
[1728454200789,0.08282032,2453.7,2453.6,0.815164]
[1728454200989,4.07518,2453.9,2453.4,4.89625]
[1728454201158,0.08282032,2453.7,2453.4,0.8204]
[1728454201361,4.07497,2454.0,2453.5,2.38825674]
[1728454201583,0.08272704,2453.6,2453.5,1.7260034]
[1728454201769,8.1501,2454.0,2453.5,1.7260034]
[1728454201984,4.07497,2454.0,2453.5,1.7260034]
[1728454202168,0.08286963,2453.9,2453.7,0.7596]
[1728454202370,4.07474,2454.2,2453.8,1.7260034]
[1728454202682,4.07483,2454.1,2453.8,1.7260034]
[1728454202997,4.07474,2454.2,2453.8,1.7260034]
[1728454203196,4.07474,2454.2,2453.8,2.38211774]
[1728454203561,4.07482,2454.1,2453.8,2.38211774]
[1728454204300,4.07474,2454.2,2453.8,2.38211774]
[1728454205387,4.07474,2454.2,2453.8,6.45741774]
[1728454205961,8.14886,2454.4,2453.8,6.45741774]
[1728454206162,4.0746,2454.3,2453.9,0.72170177]
[1728454208603,8.14886,2454.4,2453.9,0.72170177]
[1728454209108,4.07448,2454.3,2453.9,0.72170177]
[1728454211134,4.07464,2454.2,2453.9,0.72170177]
[1728454211292,4.07464,2454.2,2454.0,0.65228752]
[1728454212512,4.07464,2454.2,2453.8,1.7260034]
[1728454213299,4.07417,2454.5,2453.7,0.7596]
[1728454213507,8.15017,2454.0,2453.7,0.7596]
[1728454213730,0.55,2454.1,2453.2,0.8122]
[1728454213918,4.076,2453.4,2453.2,0.8122]
[1728454214080,8.8012634,2453.9,2452.7,0.8122]
[1728454214285,4.0763,2453.3,2452.8,1.7260034]
[1728454214484,8.15259,2453.3,2452.7,4.88922]
[1728454214790,8.15256,2453.3,2452.8,1.27049401]
[1728454215191,4.07627,2453.3,2452.8,1.27049401]
[1728454215385,4.07647,2453.1,2452.8,1.27049401]
[1728454215586,4.07627,2453.3,2452.8,1.27049401]
[1728454215788,4.07649,2453.1,2452.7,0.8122]
[1728454216103,4.07627,2453.3,2452.8,7.81550012]
[1728454217218,4.07627,2453.3,2452.8,3.73855012]
[1728454217620,0.07932622,2453.2,2452.8,3.73855012]
[1728454217978,4.07623,2453.3,2452.8,3.73855012]
[1728454218184,0.07925079,2453.1,2452.9,0.86278701]
[1728454218425,0.07932622,2453.2,2452.9,0.86278701]
[1728454218626,0.07917535,2453.0,2452.9,0.86278701]
[1728454219130,4.07631,2453.2,2452.9,0.86278701]
[1728454219335,0.07917535,2453.0,2452.9,0.86278701]
[1728454219499,4.07631,2453.2,2452.9,0.86278701]
[1728454219836,0.07917535,2453.0,2452.9,0.86278701]
[1728454220349,0.07917535,2453.0,2452.7,0.8122]
[1728454220626,4.07682,2452.9,2452.5,0.8238]
[1728454220838,4.15592535,2453.0,2452.5,0.8238]
[1728454220997,0.07900657,2452.8,2452.5,0.8238]
[1728454221198,0.07908202,2452.9,2452.6,0.490135]
[1728454221524,0.07893111,2452.7,2452.6,0.490135]
[1728454221734,4.07675,2453.0,2452.6,0.490135]
[1728454221735,0.07900657,2452.8,2452.6,0.490135]
[1728454221932,0.07900657,2452.8,2452.7,0.5059105]
[1728454222091,4.07675,2453.0,2452.7,0.5059105]
[1728454223033,4.07649,2453.1,2452.7,0.5059105]
[1728454223433,4.07634,2453.2,2452.7,0.5059105]
[1728454223634,4.07634,2453.2,2452.9,0.7731]
[1728454224414,4.07605,2453.4,2452.9,0.7731]
[1728454224637,4.07617,2453.3,2452.9,0.7731]
[1728454227531,4.07605,2453.4,2452.9,0.7731]
[1728454227720,4.07627,2453.3,2452.9,0.7731]
[1728454227927,4.07627,2453.3,2452.9,1.77066082]
[1728454230540,4.07605,2453.4,2453.0,3.73855012]
[1728454230706,8.15212,2453.4,2453.0,3.73855012]
[1728454230905,4.07605,2453.4,2453.0,3.73855012]
[1728454231101,8.15214,2453.4,2453.0,3.73855012]
[1728454231340,8.15214,2453.4,2453.1,0.55092109]
[1728454232029,4.07605,2453.4,2453.1,0.55092109]
[1728454232633,0.12153216,2453.3,2453.1,0.55092109]
[1728454232837,4.19768216,2453.3,2453.1,0.55092109]
[1728454233149,4.19768216,2453.3,2452.9,1.77066082]
[1728454233930,4.07644,2453.2,2452.9,1.77066082]
[1728454234249,0.12138063,2453.1,2452.9,0.7731]
[1728454239736,4.19785063,2453.1,2452.7,0.8043]
[1728454240044,0.12138063,2453.1,2452.7,0.8043]
[1728454240251,4.07696,2452.9,2452.5,0.8229]
[1728454240562,0.12138063,2453.1,2452.2,0.8229]
[1728454240563,4.07741,2452.6,2452.2,0.8229]
[1728454241721,0.12086665,2452.5,2452.2,0.8229]
[1728454244906,4.19836665,2452.5,2452.0,7.81674012]
[1728454245344,0.12086665,2452.5,2452.0,7.81674012]
[1728454245510,4.19833665,2452.5,2452.0,7.81674012]
[1728454245841,4.19833665,2452.5,2452.0,9.08477513]
[1728454246741,0.12086665,2452.5,2452.0,5.00658513]
[1728454247050,4.07764,2452.4,2452.0,5.00658513]
[1728454247551,0.12064922,2452.3,2452.0,5.00658513]
[1728454248758,0.12064922,2452.3,2451.7,7.43]
[1728454248759,4.07814,2452.1,2451.7,0.8061]
[1728454249105,4.19871909,2452.0,2451.7,0.8061]
[1728454249666,0.12038909,2452.0,2451.7,0.8061]
[1728454249850,8.27710909,2452.0,2451.7,0.8061]
[1728454250023,4.07848,2451.9,2451.5,4.50165012]
[1728454250209,4.19878385,2451.9,2451.5,1.92118501]
[1728454250408,4.19890385,2451.9,2451.5,0.7631]
[1728454251323,0.12030385,2451.9,2451.5,0.7631]
[1728454251921,4.19879385,2451.9,2451.5,0.7631]
[1728454252108,4.19879385,2451.9,2451.5,4.50165012]
[1728454252331,0.12030385,2451.9,2451.5,5.35973513]
[1728454253037,4.19877385,2451.9,2451.5,5.35973513]
[1728454256739,4.19877385,2451.9,2451.5,1.62118501]
[1728454257829,4.19877385,2451.9,2451.5,5.35973513]
[1728454259542,0.12030385,2451.9,2451.5,5.35973513]
[1728454259726,0.12030385,2451.9,2451.5,9.43882513]
[1728454259924,0.12030385,2451.9,2451.6,0.91653904]
[1728454260168,0.12030385,2451.9,2451.6,4.99549904]
[1728454260373,0.12030385,2451.9,2451.6,0.91653904]
[1728454261770,4.19877385,2451.9,2451.6,0.91653904]
[1728454262067,0.12030385,2451.9,2451.6,0.91653904]
[1728454263070,0.12030385,2451.9,2451.7,4.28036904]
[1728454263986,4.07809,2452.2,2451.7,4.28036904]
[1728454264143,8.15616,2452.2,2451.7,8.35915904]
[1728454264351,0.12021272,2452.1,2451.7,4.28036904]
[1728454265384,4.19836272,2452.1,2451.8,0.92757681]
[1728454265886,0.12021272,2452.1,2451.8,0.92757681]